bitfinex-derivatives/quotes_BTCF0:USTF0_20240814
["timestamp","ask_amount","ask_price","bid_price","bid_amount"]
[1723630844409,0.081731,61157.0,61156.0,0.00024542]
[1723630844607,0.14645708,61176.0,61157.0,0.49052]
[1723630844806,0.14645708,61176.0,61175.0,0.7216]
[1723630844807,4.9e-07,61176.0,61175.0,0.7216]
[1723630845013,0.08140687,61179.0,61176.0,0.081705]
[1723630845014,0.03784984,61179.0,61176.0,0.081705]
[1723630845200,0.13028789,61196.0,61176.0,0.081705]
[1723630845201,0.16328927,61204.0,61178.0,0.2828]
[1723630845505,0.23530891,61189.0,61185.0,0.6436]
[1723630845704,0.59610891,61189.0,61185.0,0.2828]
[1723630846403,0.23530891,61187.0,61182.0,0.081697]
[1723630847601,0.08169,61188.0,61181.0,0.0002452]
[1723630847800,0.31699891,61188.0,61181.0,0.0002452]
[1723630848511,0.08169,61188.0,61185.0,0.081693]
[1723630849403,0.3608,61190.0,61186.0,0.081691]
[1723630849605,0.23530891,61189.0,61186.0,0.081691]
[1723630849808,0.23530891,61189.0,61187.0,0.08169]
[1723630850110,0.23530891,61189.0,61188.0,0.442489]
[1723630850415,0.31699691,61189.0,61185.0,0.001]
[1723630850607,0.23530891,61188.0,61185.0,0.001]
[1723630851107,0.1008,61198.0,61187.0,0.3608]
[1723630851108,0.081684,61192.0,61187.0,0.3608]
[1723630851298,0.23530891,61190.0,61189.0,0.081688]
[1723630852507,0.23530891,61190.0,61187.0,0.3608]
[1723630852508,0.31699491,61190.0,61187.0,0.3608]
[1723630852714,0.23530891,61189.0,61187.0,0.3608]
[1723630853099,0.23530891,61189.0,61186.0,0.081691]
[1723630853299,0.23530891,61189.0,61187.0,0.001]
[1723630853713,0.081686,61190.0,61188.0,0.081689]
[1723630853910,0.31699491,61190.0,61188.0,0.081689]
[1723630854112,0.31699491,61190.0,61187.0,0.001]
[1723630854113,0.23530891,61190.0,61189.0,0.081688]
[1723630854305,0.3608,61193.0,61189.0,0.081688]
[1723630854306,0.3608,61193.0,61189.0,0.49028]
[1723630854507,0.442483,61193.0,61191.0,0.081685]
[1723630854810,0.23530891,61190.0,61187.0,0.36449]
[1723630855007,0.23530891,61190.0,61189.0,0.081688]
[1723630855910,0.3608,61193.0,61191.0,0.081685]
[1723630856702,0.442483,61193.0,61191.0,0.081685]
[1723630856904,0.081686,61190.0,61189.0,0.001]
[1723630857104,0.081702,61178.0,61177.0,0.04812841]
[1723630857305,0.081714,61169.0,61168.0,0.41008841]
[1723630857506,0.23530891,61169.0,61168.0,0.442516]
[1723630858408,0.00024444,61175.0,61169.0,0.081714]
[1723630858608,0.23530891,61174.0,61169.0,0.081714]
[1723630858811,0.23530891,61170.0,61169.0,0.081714]
[1723630859313,0.23530891,61170.0,61169.0,0.364514]
[1723630859521,0.00024444,61175.0,61174.0,0.081708]
[1723630860211,0.00024444,61175.0,61169.0,0.33092841]
[1723630860212,0.00024444,61175.0,61169.0,0.364514]
[1723630860409,0.09881828,61175.0,61170.0,0.081712]
[1723630860611,0.23530891,61173.0,61170.0,0.081712]
[1723630860806,0.23530891,61173.0,61170.0,0.04812841]
[1723630861004,0.23530891,61173.0,61171.0,0.04812841]
[1723630861417,0.00024444,61175.0,61173.0,0.081708]
[1723630861619,0.23555335,61175.0,61173.0,0.081708]
[1723630862117,0.23555335,61175.0,61174.0,0.081708]
[1723630862715,0.081716,61168.0,61167.0,0.3608]
[1723630862911,0.081716,61168.0,61162.0,0.3610452]
[1723630862912,0.23530891,61168.0,61162.0,0.0014052]
[1723630863119,0.31703091,61163.0,61162.0,0.0002452]
[1723630863321,0.67783091,61163.0,61162.0,0.0002452]
[1723630863615,0.77640475,61163.0,61162.0,0.0002452]
[1723630864512,0.77640475,61163.0,61162.0,0.0092452]
[1723630865316,0.77640475,61163.0,61162.0,0.0002452]
[1723630865808,0.77640475,61163.0,61162.0,0.0082452]
[1723630866217,0.77640475,61163.0,61162.0,0.0112452]
[1723630866814,0.77640475,61163.0,61162.0,0.0052452]
[1723630868409,0.69468275,61163.0,61162.0,0.0052452]
[1723630870122,0.69368275,61163.0,61162.0,0.0052452]
[1723630871512,0.59510891,61163.0,61162.0,0.0052452]
[1723630871713,0.69368275,61163.0,61162.0,0.0052452]
[1723630872220,0.77540475,61163.0,61162.0,0.0052452]
[1723630876114,0.23430891,61163.0,61162.0,0.0052452]
[1723630876316,0.0489,61176.0,61162.0,0.2880452]
[1723630876619,0.23430891,61172.0,61168.0,0.6436]
[1723630877023,0.23430891,61172.0,61171.0,0.081712]
[1723630877621,0.0486,61177.0,61173.0,0.081709]
[1723630877815,0.23455335,61175.0,61174.0,0.3608]
[1723630878124,0.081691,61187.0,61174.0,0.3608]
[1723630878427,0.3608,61195.0,61180.0,0.442499]
[1723630878428,0.081693,61186.0,61180.0,0.442499]
[1723630878819,0.1936797,61181.0,61180.0,0.442499]
[1723630879322,0.37395154,61181.0,61180.0,0.3608]
[1723630880229,0.29225354,61181.0,61174.0,0.3610452]
[1723630880525,0.1936797,61175.0,61174.0,0.3610452]
[1723630881021,0.1936797,61175.0,61174.0,0.4427532]
[1723630882229,0.081665,61207.0,61174.0,0.4427532]
[1723630882230,0.081681,61195.0,61186.0,0.08169]
[1723630882521,0.00084,61214.0,61208.0,0.081662]
[1723630882723,0.3608,61215.0,61208.0,0.081662]
[1723630882724,0.29574374,61209.0,61208.0,0.364462]
[1723630882921,0.1971699,61209.0,61208.0,0.2828]
[1723630883220,0.1971699,61209.0,61206.0,0.3608]
[1723630883221,0.1971699,61209.0,61206.0,0.442465]
[1723630883427,0.0034902,61209.0,61208.0,0.081662]
[1723630883920,0.1971699,61209.0,61208.0,0.081662]
[1723630884125,0.65654374,61209.0,61202.0,0.0002452]
[1723630884324,0.1936797,61203.0,61202.0,0.0002452]
[1723630884624,0.1936797,61205.0,61204.0,0.081668]
[1723630884826,0.1936797,61205.0,61204.0,0.442468]
[1723630885213,0.0034902,61209.0,61208.0,0.081662]
[1723630885428,0.10206404,61209.0,61208.0,0.081662]
[1723630885629,0.29574374,61209.0,61208.0,0.081662]
[1723630886721,0.0034902,61209.0,61208.0,0.082662]
[1723630887723,0.0034902,61209.0,61208.0,0.081662]
[1723630887922,0.29574374,61209.0,61204.0,0.3608]
[1723630888133,0.29574374,61209.0,61202.0,0.0002452]
[1723630888134,0.1936797,61205.0,61202.0,0.0002452]
[1723630888433,0.1936797,61203.0,61202.0,0.0002452]
[1723630888613,0.1936797,61203.0,61202.0,0.0819152]
[1723630888817,0.29225354,61203.0,61202.0,0.0819152]
[1723630889616,0.1936797,61203.0,61202.0,0.0819152]
[1723630889820,0.0034902,61209.0,61203.0,0.081669]
[1723630890015,0.18372604,61209.0,61204.0,0.3608]
[1723630890321,0.1936797,61205.0,61204.0,0.3608]
[1723630890632,0.1936797,61205.0,61204.0,0.442468]
[1723630890817,0.29225354,61205.0,61204.0,0.442468]
[1723630891022,0.1936797,61205.0,61204.0,0.442468]
[1723630891732,0.0034902,61209.0,61204.0,0.3608]
[1723630891916,0.1936797,61207.0,61204.0,0.3608]
[1723630892230,0.1936797,61207.0,61206.0,0.081665]
[1723630892718,0.0034902,61209.0,61208.0,0.081662]
[1723630893226,0.0034902,61209.0,61208.0,1.053444]
[1723630893528,0.0034902,61209.0,61208.0,0.571782]
[1723630893729,0.081641,61224.0,61208.0,0.571782]
[1723630893730,0.442435,61229.0,61209.0,0.081661]
[1723630893927,0.55937384,61221.0,61220.0,0.081646]
[1723630894225,0.1936797,61221.0,61220.0,0.081646]
[1723630895224,0.3608,61244.0,61220.0,0.89004]
[1723630895424,0.56937384,61240.0,61229.0,0.3608]
[1723630895926,0.1936797,61230.0,61229.0,0.3608]
[1723630896126,0.1936797,61230.0,61228.0,0.00024498]
[1723630896325,0.081623,61238.0,61229.0,0.3608]
[1723630896625,0.191623,61238.0,61229.0,0.3608]
[1723630896830,0.1936797,61230.0,61229.0,0.442434]
[1723630897125,0.1936797,61230.0,61229.0,0.3608]
[1723630897426,0.29225354,61230.0,61229.0,0.3608]
[1723630898222,0.37388654,61230.0,61229.0,0.3608]
[1723630899427,0.40541836,61230.0,61229.0,0.3608]
[1723630900027,0.40541836,61230.0,61229.0,0.3618]
[1723630900232,0.40541836,61230.0,61220.0,0.001]
[1723630900233,0.081645,61221.0,61220.0,0.001]
[1723630900423,0.31529888,61221.0,61220.0,0.001]
[1723630900729,0.41387272,61221.0,61220.0,0.001]
[1723630901121,0.081658,61211.0,61210.0,0.3608]
[1723630901321,0.4444369,61211.0,61210.0,0.3608]
[1723630901522,0.41388572,61211.0,61210.0,0.3608]
[1723630901722,0.33222772,61211.0,61210.0,0.44246]
[1723630901918,0.23365388,61211.0,61210.0,0.44246]
[1723630902127,0.23365388,61211.0,61210.0,0.3608]
[1723630902326,0.46401394,61211.0,61210.0,0.3608]
[1723630902629,0.41389606,61211.0,61210.0,0.3608]
[1723630902834,0.51781468,61211.0,61210.0,0.3608]
[1723630903034,0.43615668,61211.0,61204.0,0.00024498]
[1723630903334,0.2753457,61205.0,61204.0,0.00024498]
[1723630903528,0.31533022,61205.0,61204.0,0.00024498]
[1723630904322,0.36545227,61205.0,61204.0,0.00124498]
[1723630904529,0.28378627,61205.0,61204.0,0.08291298]
[1723630904733,0.42943701,61205.0,61204.0,0.08291298]
[1723630905027,0.28378627,61205.0,61204.0,0.08291298]
[1723630906826,0.36545533,61205.0,61204.0,0.08291298]
[1723630907135,0.46402917,61205.0,61204.0,0.08291298]
[1723630907335,0.64317258,61205.0,61204.0,0.08291298]
[1723630907537,0.55306295,61205.0,61204.0,0.08291298]
[1723630907736,0.55306295,61205.0,61204.0,0.00124498]
[1723630908035,0.63472895,61205.0,61204.0,0.00124498]
[1723630909733,0.71639495,61205.0,61204.0,0.00124498]
[1723630909935,0.081676,61198.0,61191.0,0.04826696]
[1723630910129,0.081685,61191.0,61190.0,0.40906696]
[1723630910333,0.08168,61195.0,61190.0,0.40906696]
[1723630910527,0.3608,61196.0,61195.0,0.08168]
[1723630911331,0.3608,61196.0,61195.0,0.62018696]
[1723630911532,0.00024498,61202.0,61201.0,0.081672]
[1723630911734,0.00024498,61202.0,61201.0,0.12997696]
[1723630912237,0.00024498,61202.0,61201.0,0.14604506]
[1723630913041,0.17914341,61205.0,61204.0,0.081668]
[1723630913339,0.3608,61211.0,61210.0,0.08166]
[1723630913531,0.41109405,61211.0,61210.0,0.08166]
[1723630914535,0.48262391,61211.0,61210.0,0.08166]
[1723630914728,0.12182391,61211.0,61210.0,0.08166]
[1723630914927,0.20348191,61211.0,61210.0,0.08166]
[1723630915337,0.25360255,61211.0,61210.0,0.08166]
[1723630915647,0.25360271,61211.0,61210.0,0.08166]
[1723630916030,0.07152986,61211.0,61210.0,0.08166]
[1723630916337,0.13014778,61212.0,61211.0,0.081658]
[1723630916648,0.07151865,61214.0,61210.0,0.081659]
[1723630916829,0.11386203,61214.0,61213.0,0.442456]
[1723630917029,0.14539957,61214.0,61213.0,0.3608]
[1723630917347,0.11319154,61214.0,61213.0,0.3608]
[1723630917533,0.03153754,61214.0,61213.0,0.442456]
[1723630919734,0.03153754,61214.0,61213.0,1.483536]
[1723630919943,0.00024427,61217.0,61216.0,0.081652]
[1723630920338,0.03177985,61217.0,61216.0,0.081652]
[1723630921840,0.03177985,61217.0,61201.0,0.006]
[1723630921841,0.081666,61205.0,61201.0,0.006]
[1723630922244,0.16350169,61205.0,61201.0,0.006]
[1723630922546,0.13196005,61205.0,61201.0,0.006]
[1723630923134,0.13196005,61205.0,61204.0,0.00224498]
[1723630923341,0.081666,61205.0,61204.0,0.00224498]
[1723630923537,0.081666,61205.0,61204.0,0.08391298]
[1723630924348,0.0488,61209.0,61208.0,0.081662]
[1723630924535,0.09909405,61209.0,61208.0,0.081662]
[1723630925148,0.3608,61211.0,61208.0,0.081662]
[1723630925343,0.001,61211.0,61210.0,0.08166]
[1723630925847,0.00024427,61217.0,61216.0,0.081652]
[1723630926241,0.08189427,61217.0,61216.0,0.081652]
[1723630926436,0.081652,61216.0,61210.0,0.04832556]
[1723630926638,0.081657,61212.0,61209.0,0.12998556]
[1723630926841,0.05053832,61217.0,61209.0,0.08166]
[1723630927239,0.3608,61212.0,61205.0,0.081666]
[1723630927659,0.3608,61212.0,61204.0,0.00024498]
[1723630927660,0.163332,61205.0,61204.0,0.00024498]
[1723630928045,0.13196005,61205.0,61204.0,0.00024498]
[1723630929253,0.081662,61209.0,61204.0,0.00024498]
[1723630929458,0.081662,61209.0,61208.0,0.081662]
[1723630929747,0.19566725,61209.0,61208.0,0.081662]
[1723630929949,0.03154176,61209.0,61208.0,0.081662]
[1723630930154,0.00224427,61217.0,61206.0,0.3608]
[1723630930155,0.081653,61216.0,61212.0,0.081657]
[1723630930348,0.03153985,61215.0,61212.0,0.081657]
[1723630930547,0.03153985,61214.0,61212.0,0.081657]
[1723630930750,0.03153985,61213.0,61212.0,0.081657]
[1723630931345,0.03153985,61213.0,61212.0,0.442457]
[1723630932452,0.00024427,61217.0,61216.0,0.081652]
[1723630932646,0.03178119,61217.0,61216.0,0.081652]
[1723630933859,0.03178119,61217.0,61216.0,0.972732]
[1723630935165,0.00024427,61217.0,61216.0,0.972732]
[1723630935351,0.09765995,61217.0,61216.0,1.11329485]
[1723630935551,0.0941707,61223.0,61216.0,1.48964429]
[1723630935765,0.0941707,61223.0,61222.0,0.724844]
[1723630936055,0.0941707,61223.0,61222.0,0.81970285]
[1723630936247,0.0941707,61223.0,61222.0,1.30970285]
[1723630936455,0.11400525,61237.0,61230.0,0.081633]
[1723630936456,0.081624,61237.0,61230.0,0.081633]
[1723630936653,0.03153094,61236.0,61231.0,0.081631]
[1723630936850,0.03153094,61235.0,61228.0,0.081635]
[1723630937048,0.081632,61231.0,61222.0,0.3608]
[1723630937352,0.03153094,61230.0,61223.0,0.09484402]
[1723630937552,0.05029405,61231.0,61228.0,0.081635]
[1723630938151,0.05029405,61231.0,61222.0,0.3608]
[1723630938554,0.05029405,61231.0,61229.0,0.081634]
[1723630939450,0.05029405,61231.0,61230.0,0.081633]
[1723630939956,0.081625,61237.0,61222.0,0.443444]
[1723630940150,0.091625,61237.0,61222.0,0.443444]
[1723630940346,0.14191905,61237.0,61233.0,0.081628]
[1723630940654,0.14191905,61237.0,61234.0,0.081628]
[1723630940852,0.14191905,61237.0,61229.0,0.00124498]
[1723630940853,0.06029405,61237.0,61229.0,0.00124498]
[1723630941253,0.06029405,61237.0,61236.0,0.081625]
[1723630941952,0.3608,61239.0,61238.0,0.081622]
[1723630942162,0.41109405,61239.0,61238.0,0.081622]
[1723630942554,0.41109405,61239.0,61233.0,0.001]
[1723630942862,0.3608,61239.0,61238.0,0.081622]
[1723630943859,0.081618,61242.0,61238.0,0.081622]
[1723630944058,0.3608,61239.0,61238.0,0.081622]
[1723630944454,0.3608,61239.0,61233.0,0.001]
[1723630944455,0.3608,61244.0,61242.0,0.081617]
[1723630944656,0.03152685,61243.0,61242.0,0.081617]
[1723630944856,0.13314285,61243.0,61242.0,0.081617]
[1723630945163,0.05152685,61243.0,61238.0,0.001]
[1723630945360,0.081621,61240.0,61238.0,0.082622]
[1723630945859,0.13191505,61240.0,61238.0,0.082622]
[1723630946259,0.081621,61239.0,61238.0,0.083622]
[1723630946772,0.13191505,61239.0,61238.0,0.002]
[1723630947469,0.49271505,61239.0,61238.0,0.002]
[1723630949060,0.50271505,61239.0,61238.0,0.002]
[1723630949264,0.081629,61234.0,61231.0,0.081631]
[1723630949463,0.3608,61232.0,61214.0,0.3608]
[1723630949763,0.3608,61232.0,61217.0,0.08165]
[1723630949764,0.081649,61218.0,61217.0,0.08165]
[1723630950187,0.41109405,61218.0,61210.0,0.3608]
[1723630950366,0.081658,61211.0,61210.0,0.44246]
[1723630950562,0.1555,61217.0,61216.0,0.081652]
[1723630950759,0.20603903,61217.0,61216.0,0.081652]
[1723630951357,0.15383903,61217.0,61216.0,0.081652]
[1723630952364,0.05374498,61217.0,61216.0,0.081652]
[1723630952676,0.07176271,61217.0,61216.0,0.081652]
[1723630953767,0.1218751,61217.0,61216.0,0.081652]
[1723630954472,0.1218751,61217.0,61216.0,0.001]
[1723630954672,0.17216915,61217.0,61216.0,0.001]
[1723630954970,0.25382624,61217.0,61216.0,0.001]
[1723630955468,0.33547624,61217.0,61216.0,0.001]
[1723630956068,0.33547624,61217.0,61216.0,0.00090001]
[1723630956775,0.081656,61213.0,61212.0,0.081657]
[1723630957069,0.15317749,61213.0,61212.0,0.081657]
[1723630957272,0.25358726,61213.0,61212.0,0.081657]
[1723630957676,0.081658,61211.0,61210.0,0.3608]
[1723630957871,0.33205551,61211.0,61210.0,0.3608]
[1723630958069,0.43246528,61211.0,61210.0,0.44246]
[1723630958268,0.17193126,61211.0,61210.0,0.44246]
[1723630959174,0.17791916,61211.0,61210.0,0.52412]
[1723630959480,0.07152149,61211.0,61210.0,0.44246]
[1723630959674,0.00024498,61217.0,61212.0,0.001]
[1723630959864,0.05053903,61217.0,61216.0,0.081652]
[1723630960471,0.41133903,61217.0,61216.0,0.081652]
[1723630961472,0.41133903,61217.0,61212.0,0.001]
[1723630961473,0.081656,61213.0,61212.0,0.001]
[1723630961878,0.13195005,61213.0,61212.0,0.001]
[1723630962074,0.05029405,61213.0,61212.0,0.001]
[1723630962379,0.10009405,61213.0,61212.0,0.0948705]
[1723630963068,0.18175005,61213.0,61212.0,0.0948705]
[1723630963265,0.18175005,61213.0,61212.0,0.0998705]
[1723630964069,0.18175005,61213.0,61201.0,0.42517306]
[1723630964070,0.08169,61187.0,61183.0,0.04835377]
[1723630964270,0.08169,61187.0,61174.0,0.08058961]
[1723630964271,0.081702,61179.0,61175.0,0.081706]
[1723630964472,0.3608,61179.0,61166.0,0.04835377]
[1723630964670,0.3608,61179.0,61163.0,0.11837169]
[1723630964671,0.3608,61179.0,61168.0,0.37081496]
[1723630964976,0.081708,61175.0,61168.0,0.37081496]
[1723630965173,0.081708,61175.0,61168.0,0.3608]
[1723630965975,0.00012854,61178.0,61172.0,0.081709]
[1723630966278,0.081714,61169.0,61168.0,0.3608]
[1723630966480,0.081708,61174.0,61169.0,0.081713]
[1723630966775,0.00012854,61178.0,61168.0,0.3668]
[1723630966976,0.00012854,61178.0,61168.0,0.3608]
[1723630967180,0.081712,61171.0,61168.0,0.3688]
[1723630967571,0.081714,61170.0,61168.0,0.3688]
[1723630968277,0.081707,61175.0,61168.0,0.3738]
[1723630968472,0.00012854,61178.0,61176.0,0.081705]
[1723630968673,0.00012854,61178.0,61171.0,0.081711]
[1723630968882,0.00012854,61178.0,61168.0,0.3738]
[1723630969478,0.00012854,61178.0,61168.0,0.3658]
[1723630969883,0.00012854,61178.0,61168.0,0.3628]
[1723630970077,0.08183254,61178.0,61168.0,0.3628]
[1723630970272,0.08183254,61178.0,61173.0,0.081709]
[1723630970779,0.28252854,61178.0,61173.0,0.081709]
[1723630971175,0.28352854,61178.0,61173.0,0.081709]
[1723630971370,0.28352854,61178.0,61174.0,0.081708]
[1723630971573,0.081704,61177.0,61174.0,0.081708]
[1723630971980,0.081704,61177.0,61175.0,0.081705]
[1723630972378,0.00212854,61178.0,61168.0,0.3918]
[1723630972687,0.00212854,61178.0,61176.0,0.081704]
[1723630972879,0.00212854,61178.0,61177.0,0.081704]
[1723630973278,0.00024519,61180.0,61177.0,0.081704]
[1723630973476,0.00024519,61180.0,61179.0,0.081701]
[1723630973679,0.3608,61190.0,61177.0,0.081704]
[1723630973680,0.442487,61190.0,61177.0,0.081704]
[1723630973879,0.442487,61190.0,61183.0,0.3608]
[1723630974588,0.442487,61190.0,61189.0,0.081688]
[1723630974589,0.3608,61190.0,61189.0,0.081688]
[1723630976678,0.3608,61190.0,61187.0,0.081689]
[1723630976983,0.3608,61190.0,61189.0,0.007]
[1723630978882,0.3608,61190.0,61183.0,0.00924519]
[1723630978883,0.3608,61190.0,61187.0,0.009]
[1723630979081,0.3608,61190.0,61189.0,0.011]
[1723630979278,0.3608,61190.0,61189.0,0.092688]
[1723630979480,0.00024519,61196.0,61189.0,0.092688]
[1723630979481,0.00024519,61196.0,61193.0,0.081682]
[1723630980286,0.00024519,61196.0,61189.0,0.092687]
[1723630980492,0.00024519,61196.0,61189.0,0.005]
[1723630980690,0.00024519,61196.0,61189.0,0.006]
[1723630980991,0.00024519,61196.0,61195.0,0.16336]
[1723630981486,0.3885,61216.0,61209.0,0.08166]
[1723630981879,0.3885,61216.0,61210.0,0.081659]
[1723630982385,0.470152,61216.0,61210.0,0.081659]
[1723630982783,0.470152,61216.0,61208.0,0.3608]
[1723630982784,0.3885,61216.0,61208.0,0.3608]
[1723630983286,0.1101,61216.0,61212.0,0.081657]
[1723630983492,0.1101,61216.0,61210.0,0.001]
[1723630983493,0.004,61216.0,61210.0,0.001]
[1723630983790,0.008,61216.0,61213.0,0.081655]
[1723630984389,0.004,61216.0,61214.0,0.081654]
[1723630985382,0.004,61216.0,61215.0,0.081653]
[1723630986094,0.3608,61218.0,61216.0,0.081651]
[1723630986693,0.081643,61223.0,61217.0,0.08165]
[1723630986890,0.081643,61223.0,61218.0,0.081649]
[1723630987490,0.0558,61224.0,61220.0,0.3608]
[1723630987703,0.3608,61223.0,61213.0,0.3608]
[1723630988103,0.3608,61223.0,61216.0,0.002]
[1723630988608,0.4166,61224.0,61219.0,0.081647]
[1723630989108,0.0558,61224.0,61220.0,0.081646]
[1723630989406,0.081645,61221.0,61213.0,0.001]
[1723630989600,0.806508,61214.0,61213.0,0.001]
[1723630989801,0.92815405,61214.0,61213.0,0.00090001]
[1723630990104,0.79638147,61214.0,61213.0,0.00090001]
[1723630990608,0.43232747,61214.0,61213.0,0.00090001]
[1723630991001,0.43232747,61214.0,61213.0,0.08255601]
[1723630991202,0.43232747,61214.0,61213.0,0.08855601]
[1723630991406,0.43232747,61214.0,61213.0,0.087656]
[1723630991603,0.07152747,61214.0,61213.0,0.087656]
[1723630991803,0.12164549,61214.0,61213.0,0.087656]
[1723630992807,0.17732064,61214.0,61213.0,0.087656]
[1723630993113,0.26741514,61214.0,61213.0,0.087656]
[1723630993312,0.26740221,61214.0,61213.0,0.090656]
[1723630993514,0.12164549,61214.0,61213.0,0.090656]
[1723630993813,0.12164549,61214.0,61213.0,0.087656]
[1723630994217,0.2334804,61214.0,61213.0,0.087656]
[1723630994516,0.28358438,61214.0,61213.0,0.087656]
[1723630994703,0.12163145,61214.0,61213.0,0.087656]
[1723630994903,0.0715181,61214.0,61213.0,0.084656]
[1723630995315,0.0715181,61214.0,61213.0,0.092656]
[1723630995513,0.0715181,61214.0,61213.0,0.098656]
[1723630996307,0.23344635,61214.0,61213.0,0.098656]
[1723630996611,0.23346669,61214.0,61213.0,0.098656]
[1723630996821,0.081638,61227.0,61222.0,0.081644]
[1723630997114,0.081641,61224.0,61222.0,0.081644]
[1723630997315,0.081641,61224.0,61217.0,0.3608]
[1723630997507,0.081641,61224.0,61220.0,0.081646]
[1723630998215,0.081641,61224.0,61221.0,0.081644]
[1723630998716,0.3608,61226.0,61217.0,0.3608]
[1723630998913,0.081645,61222.0,61217.0,0.44245]
[1723630999611,0.081645,61222.0,61217.0,0.3608]
[1723630999820,0.081645,61222.0,61219.0,0.081647]
[1723631002212,0.082645,61222.0,61219.0,0.081647]
[1723631002711,0.082645,61222.0,61217.0,0.3608]
[1723631002712,0.081649,61218.0,61217.0,0.3608]
[1723631002909,0.3608,61218.0,61207.0,0.00024519]
[1723631003112,0.0629,61217.0,61207.0,0.00024519]
[1723631003419,0.081652,61216.0,61211.0,0.081657]
[1723631003612,0.3608,61212.0,61211.0,0.081657]
[1723631004414,0.3608,61212.0,61202.0,0.04835377]
[1723631004615,0.081672,61201.0,61200.0,0.04819943]
[1723631004811,0.081672,61201.0,61195.0,0.00084]
[1723631004812,0.081685,61191.0,61186.0,0.08183121]
[1723631005013,0.48245208,61201.0,61186.0,0.09223789]
[1723631005014,0.3608,61187.0,61186.0,0.09223789]
[1723631005214,0.3608,61187.0,61186.0,0.08183121]
[1723631005215,0.48246452,61187.0,61186.0,0.08183121]
[1723631005415,0.7099051,61187.0,61186.0,0.08183121]
[1723631005723,0.56415452,61187.0,61186.0,0.08183121]
[1723631005917,0.56415452,61187.0,61186.0,0.00014021]
[1723631006919,0.72610311,61187.0,61186.0,0.00014021]
[1723631007232,0.48246452,61187.0,61186.0,0.00014021]
[1723631007415,0.64441311,61187.0,61186.0,0.08183221]
[1723631007822,0.64441311,61187.0,61186.0,0.09583221]
[1723631008027,0.64443573,61187.0,61186.0,0.09583221]
[1723631008323,0.43235085,61187.0,61186.0,0.09583221]
[1723631008731,0.14535232,61187.0,61186.0,0.10983221]
[1723631009020,0.03155164,61187.0,61186.0,1.00015221]
[1723631009328,0.00024519,61193.0,61186.0,0.91846021]
[1723631009620,0.00024519,61193.0,61191.0,0.16337]
[1723631009621,0.07153849,61192.0,61191.0,0.16337]
[1723631009820,0.07153849,61192.0,61191.0,0.65365]
[1723631009821,0.03154638,61192.0,61191.0,0.65365]
[1723631010017,0.11381587,61192.0,61191.0,1.11875]
[1723631010215,0.14536225,61192.0,61191.0,1.11875]
[1723631010417,0.03154638,61192.0,61191.0,1.11875]
[1723631011826,0.11381587,61193.0,61192.0,0.571964]
[1723631012027,0.11381587,61193.0,61192.0,1.146548]
[1723631012223,0.11381587,61193.0,61192.0,1.67099059]
[1723631012825,0.11245001,61197.0,61196.0,0.163356]
[1723631013019,0.11245001,61197.0,61196.0,0.61053442]
[1723631013219,0.11245001,61197.0,61196.0,0.442478]
[1723631013822,0.11245001,61197.0,61196.0,0.45258407]
[1723631014125,0.11245001,61197.0,61196.0,0.53298906]
[1723631014331,0.11245001,61197.0,61196.0,0.65742315]
[1723631014520,0.11245001,61197.0,61196.0,0.53298906]
[1723631014720,0.11245001,61197.0,61196.0,0.45258407]
[1723631014920,0.11245001,61197.0,61196.0,1.54766457]
[1723631015431,0.3608,61206.0,61205.0,0.081666]
[1723631015733,0.3608,61206.0,61205.0,0.12989918]
[1723631016025,0.3608,61206.0,61205.0,0.081666]
[1723631016226,0.3608,61206.0,61205.0,0.12989988]
[1723631016425,0.3608,61206.0,61205.0,0.081666]
[1723631017224,0.3608,61206.0,61205.0,0.12989988]
[1723631017632,0.3608,61206.0,61205.0,0.081666]
[1723631018336,0.3608,61206.0,61205.0,0.14597691]
[1723631018733,0.31995068,61206.0,61205.0,0.15397691]
[1723631019331,0.3608,61217.0,61205.0,1.62377972]
[1723631019534,0.3608,61217.0,61212.0,0.04822036]
[1723631019734,0.3608,61217.0,61213.0,0.04822036]
[1723631021337,0.3608,61217.0,61216.0,0.081651]
[1723631023432,0.3608,61217.0,61216.0,0.77995136]
[1723631023829,0.3608,61217.0,61216.0,0.731731]
[1723631024131,0.3608,61217.0,61216.0,0.241651]
[1723631024336,0.3608,61217.0,61216.0,0.77992994]
[1723631024632,0.066,61230.0,61216.0,0.77992994]
[1723631024633,0.00084,61231.0,61230.0,0.081632]
[1723631024834,0.36164,61233.0,61232.0,0.08163]
[1723631025134,0.3608,61233.0,61232.0,0.08163]
[1723631027038,0.48240296,61233.0,61232.0,0.08163]
[1723631027238,0.6285507,61233.0,61232.0,0.08163]
[1723631027733,0.48240296,61233.0,61232.0,0.08163]
[1723631028033,0.48240296,61233.0,61232.0,0.07346701]
[1723631030137,0.66092405,61233.0,61232.0,0.07346701]
[1723631031243,0.48240296,61233.0,61232.0,0.07346701]
[1723631032242,0.48240296,61233.0,61226.0,0.01656311]
[1723631032243,0.66086235,61233.0,61226.0,0.081636]
[1723631032431,0.16223586,61229.0,61226.0,0.081636]
[1723631032633,0.07150135,61228.0,61226.0,0.081636]
[1723631032838,0.54013939,61233.0,61226.0,0.081636]
[1723631032839,0.28383882,61227.0,61226.0,0.081636]
[1723631033236,0.19376567,61227.0,61226.0,0.081636]
[1723631033536,0.26759464,61227.0,61226.0,0.081636]
[1723631033737,0.081638,61226.0,61224.0,0.08188498]
[1723631034043,0.56404283,61225.0,61224.0,0.00024498]
[1723631034236,0.62734283,61225.0,61224.0,0.00024498]
[1723631034938,0.505739,61225.0,61224.0,0.00024498]
[1723631035842,0.505739,61225.0,61221.0,0.081643]
[1723631035843,0.4241,61225.0,61213.0,0.08989475]
[1723631036038,0.081653,61215.0,61213.0,0.08989475]
[1723631036232,0.442448,61219.0,61210.0,0.081658]
[1723631036433,0.0646,61218.0,61210.0,0.251658]
[1723631036643,0.081657,61212.0,61210.0,0.251658]
[1723631037038,0.442457,61212.0,61210.0,0.251658]
[1723631037233,0.3608,61212.0,61211.0,0.081658]
[1723631039343,0.3608,61212.0,61211.0,0.086658]
[1723631039542,0.442456,61212.0,61211.0,0.005]